fUST/lending_fUST_20241118
["ID","MTS","AMOUNT","RATE_DAILY","PERIOD"]
[342508413,1731945053025,-2199.65,0.00013972,2]
[342508414,1731945053035,-500.0,0.00013972,2]
[342508415,1731945053289,-503.41,0.00013972,2]
[342508416,1731945053318,-500.0,0.00013972,2]
[342508417,1731945053332,-500.0,0.00013972,2]
[342508418,1731945053341,-500.0,0.00013972,2]
[342508419,1731945053352,-500.0,0.00013972,2]
[342508420,1731945053363,-500.0,0.00013972,2]
[342508421,1731945053374,-478.25432509,0.00013972,2]
[342508422,1731945053384,-513.0,0.00013972,2]
[342508423,1731945053396,-500.0,0.00013972,2]
[342508424,1731945053406,-275.066772,0.00013972,2]
[342508425,1731945053416,-585.97,0.00013972,2]
[342508426,1731945053426,-5817.01,0.00013972,2]
[342508427,1731945053436,-256.164596,0.00013972,2]
[342508428,1731945053446,-500.0,0.00013972,2]
[342508429,1731945053456,-151.0,0.00013972,2]
[342508430,1731945053466,-256.164596,0.00013972,2]
[342508431,1731945053476,-642.85,0.00013972,2]
[342508432,1731945053489,-500.0,0.00013972,2]
[342508433,1731945053499,-593.07,0.00013972,2]
[342508434,1731945053509,-525.92265856,0.00013972,2]
[342508435,1731945053519,-2864.24,0.00013972,2]
[342508436,1731945053528,-500.0,0.00013972,2]
[342508437,1731945053539,-756.35,0.00013972,2]
[342508438,1731945053549,-1284.28,0.00013972,2]
[342508439,1731945053559,-910.43,0.00013972,2]
[342508440,1731945053570,-912.58,0.00013972,2]
[342508441,1731945053580,-500.0,0.00013972,2]
[342508442,1731945053591,-1835.75,0.00013972,2]
[342508443,1731945053601,-2501.18,0.00013972,2]
[342508444,1731945053611,-500.0,0.00013972,2]
[342508445,1731945053622,-500.0,0.00013972,2]
[342508446,1731945053632,-500.0,0.00013972,2]
[342508447,1731945053642,-314.86,0.00013972,2]
[342508448,1731945053654,-500.0,0.00013972,2]
[342508449,1731945053665,-500.0,0.00013972,2]
[342508450,1731945053675,-500.0,0.00013972,2]
[342508451,1731945053685,-500.0,0.00013972,2]
[342508452,1731945053695,-500.0,0.00013972,2]
[342508453,1731945053705,-500.0,0.00013972,2]
[342508454,1731945053715,-500.0,0.00013972,2]
[342508455,1731945053725,-500.0,0.00013972,2]
[342508456,1731945053737,-500.0,0.00013972,2]
[342508457,1731945053747,-985.47,0.00013972,2]
[342508458,1731945053757,-500.0,0.00013972,2]
[342508459,1731945053767,-7259.95,0.00013972,2]
[342508460,1731945053777,-500.0,0.00013972,2]
[342508461,1731945053786,-10552.15,0.00013972,2]
[342508462,1731945053796,-2343.41,0.00013972,2]
[342508463,1731945053806,-500.0,0.00013972,2]
[342508464,1731945053815,-1194.08,0.00013972,2]
[342508465,1731945053825,-151.0,0.00013972,2]
[342508466,1731945053835,-500.0,0.00013972,2]
[342508467,1731945053845,-525.28,0.00013972,2]
[342508468,1731945053854,-549.96,0.00013972,2]
[342508469,1731945053864,-151.0,0.00013972,2]
[342508470,1731945053873,-500.0,0.00013972,2]
[342508471,1731945053882,-500.0,0.00013972,2]
[342508472,1731945053892,-1321.64,0.00013972,2]
[342508473,1731945053903,-500.0,0.00013972,2]
[342508474,1731945053913,-500.0,0.00013972,2]
[342508475,1731945053923,-500.0,0.00013972,2]
[342508476,1731945053933,-320.20898073,0.00013972,2]
[342508477,1731945053944,-500.0,0.00013972,2]
[342508478,1731945053953,-500.0,0.00013972,2]
[342508479,1731945053963,-500.55684192,0.00013973,2]
[342508480,1731945053972,-151.0,0.00013973,2]
[342508481,1731945053983,-151.0,0.00013973,2]
[342508482,1731945053993,-151.0,0.00013973,2]
[342508483,1731945054003,-565.579117,0.00013973,2]
[342508484,1731945054014,-565.579117,0.00013973,2]
[342508485,1731945054024,-156.295474,0.00014,2]
[342508486,1731945054034,-232.997186,0.00014,2]
[342508487,1731945054044,-232.997186,0.00014,2]
[342508488,1731945054055,-2356.90065942,0.00014,2]
[342508489,1731945054065,-150.112233,0.000141,2]
[342508490,1731945054076,-150.112233,0.000142,2]
[342508491,1731945054086,-151.0,0.00014229,2]
[342508492,1731945054095,-151.0,0.00014246,2]
[342508493,1731945054106,-152.864727,0.00014246,2]
[342508494,1731945054116,-151.0,0.00014246,2]
[342508495,1731945054126,-151.0,0.00014246,2]
[342508496,1731945054135,-151.0,0.00014246,2]
[342508497,1731945054146,-151.0,0.00014246,2]
[342508498,1731945054155,-151.0,0.00014246,2]
[342508499,1731945054165,-169.787532,0.00014246,2]
[342508500,1731945054174,-191.40442,0.00014246,2]
[342508501,1731945054184,-191.40442,0.00014246,2]
[342508502,1731945054194,-191.40442,0.00014246,2]
[342508503,1731945054203,-191.40442,0.00014246,2]
[342508504,1731945054213,-191.40442,0.00014246,2]
[342508505,1731945054222,-191.40442,0.00014246,2]
[342508506,1731945054234,-229.393939,0.00014246,2]
[342508507,1731945054243,-500.0,0.00014246,2]
[342508508,1731945054253,-194.277484,0.00014246,2]
[342508509,1731945054262,-194.277484,0.00014246,2]
[342508510,1731945054274,-194.277484,0.00014246,2]
[342508511,1731945054283,-194.277484,0.00014246,2]
[342508512,1731945054293,-194.277484,0.00014246,2]
[342508513,1731945054304,-194.277484,0.00014246,2]
[342508514,1731945054315,-284.06872,0.00014246,2]
[342508515,1731945054325,-151.0,0.00014246,2]
[342508516,1731945054334,-265.02531,0.00014246,2]
[342508517,1731945054344,-151.0,0.00014246,2]
[342508518,1731945054354,-151.0,0.00014246,2]
[342508519,1731945054365,-157.318411,0.00014246,2]
[342508520,1731945054374,-151.0,0.00014246,2]
[342508521,1731945054384,-151.0,0.00014246,2]
[342508522,1731945054394,-151.0,0.00014246,2]
[342508523,1731945054404,-500.0,0.00014246,2]
[342508524,1731945054413,-500.0,0.00014246,2]
[342508525,1731945054424,-151.0,0.00014246,2]
[342508526,1731945054434,-565.579117,0.00014246,2]
[342508527,1731945054444,-565.579117,0.00014246,2]
[342508528,1731945054454,-500.0,0.00014246,2]
[342508529,1731945054463,-602.90423418,0.00014246,2]
[342508530,1731945054473,-151.0,0.00014246,2]
[342508531,1731945054483,-151.0,0.00014246,2]
[342508532,1731945054493,-151.0,0.00014246,2]
[342508533,1731945054502,-166.621182,0.00014246,2]
[342508534,1731945054512,-500.0,0.00014246,2]
[342508535,1731945054522,-177.386846,0.00014246,2]
[342508536,1731945054531,-177.386846,0.00014246,2]
[342508537,1731945054541,-180.59570535,0.00014246,2]
[342508538,1731945054550,-500.0,0.00014246,2]
[342508539,1731945054560,-500.0,0.00014246,2]
[342508540,1731945054570,-500.0,0.00014246,2]
[342508541,1731945054579,-591.41,0.00014246,2]
[342508542,1731945054590,-503.15,0.00014246,2]
[342508543,1731945054599,-500.0,0.00014246,2]
[342508544,1731945054609,-151.0,0.00014246,2]
[342508545,1731945054619,-151.0,0.00014246,2]
[342508546,1731945054628,-500.0,0.00014246,2]
[342508547,1731945054638,-500.0,0.00014246,2]
[342508548,1731945054647,-500.0,0.00014246,2]
[342508549,1731945054657,-500.0,0.00014246,2]
[342508550,1731945054667,-500.0,0.00014246,2]
[342508551,1731945054677,-201.0,0.00014246,2]
[342508552,1731945054686,-500.0,0.00014246,2]
[342508553,1731945054696,-500.0,0.00014246,2]
[342508554,1731945054705,-500.0,0.00014246,2]
[342508555,1731945054715,-500.0,0.00014246,2]
[342508556,1731945054725,-500.0,0.00014246,2]
[342508557,1731945054738,-173.462048,0.00014246,2]
[342508558,1731945054748,-173.462048,0.00014246,2]
[342508559,1731945054758,-173.462048,0.00014246,2]
[342508560,1731945054767,-173.462048,0.00014246,2]
[342508561,1731945054777,-500.0,0.00014246,2]
[342508562,1731945054787,-378.58,0.00014246,2]
[342508563,1731945054797,-500.0,0.00014246,2]
[342508564,1731945054807,-500.0,0.00014246,2]
[342508565,1731945054816,-1448.23,0.00014246,2]
[342508566,1731945054827,-500.0,0.00014246,2]
[342508567,1731945054836,-538.05,0.00014246,2]
[342508568,1731945054846,-151.0,0.00014246,2]
[342508569,1731945054855,-500.0,0.00014246,2]
[342508570,1731945054864,-151.0,0.00014246,2]
[342508571,1731945054874,-500.0,0.00014246,2]
[342508572,1731945054884,-805.44,0.00014246,2]
[342508573,1731945054894,-500.0,0.00014246,2]
[342508574,1731945054904,-949.0,0.00014246,2]
[342508575,1731945054914,-1009.56,0.00014246,2]
[342508576,1731945054924,-1786.68,0.00014246,2]
[342508577,1731945054934,-500.0,0.00014246,2]
[342508578,1731945054944,-500.0,0.00014246,2]
[342508579,1731945054954,-500.0,0.00014246,2]
[342508580,1731945054964,-500.0,0.00014246,2]
[342508581,1731945054974,-500.0,0.00014246,2]
[342508582,1731945054985,-500.0,0.00014246,2]
[342508583,1731945054995,-500.0,0.00014246,2]
[342508584,1731945055005,-500.0,0.00014246,2]
[342508585,1731945055016,-2336.0,0.00014246,2]
[342508586,1731945055025,-500.0,0.00014246,2]
[342508587,1731945055035,-500.0,0.00014246,2]
[342508588,1731945055044,-524.35,0.00014246,2]
[342508589,1731945055054,-522.05,0.00014246,2]
[342508590,1731945055064,-500.0,0.00014246,2]
[342508591,1731945055073,-500.0,0.00014246,2]
[342508592,1731945055083,-500.0,0.00014246,2]
[342508593,1731945055093,-151.0,0.00014246,2]
[342508594,1731945055103,-500.0,0.00014246,2]
[342508595,1731945055112,-598.35,0.00014246,2]
[342508596,1731945055121,-531.56,0.00014246,2]
[342508597,1731945055131,-500.0,0.00014246,2]
[342508598,1731945055140,-500.0,0.00014246,2]
[342508599,1731945055150,-500.0,0.00014246,2]
[342508600,1731945055160,-500.0,0.00014246,2]
[342508601,1731945055169,-500.0,0.00014246,2]
[342508602,1731945055179,-500.0,0.00014246,2]
[342508603,1731945055188,-500.0,0.00014246,2]
[342508604,1731945055198,-500.0,0.00014246,2]
[342508605,1731945055208,-500.0,0.00014246,2]
[342508606,1731945055218,-545.61836701,0.00014246,2]
[342508607,1731945055227,-272.92609288,0.00014246,2]
[342508608,1731945055239,-562.67,0.00014246,2]
[342508609,1731945055249,-151.0,0.00014246,2]
[342508610,1731945055259,-151.0,0.00014246,2]
[342508611,1731945055272,-151.0,0.00014246,2]
[342508612,1731945055282,-151.0,0.00014246,2]
[342508613,1731945055292,-500.0,0.00014246,2]
[342508614,1731945055302,-500.0,0.00014246,2]
[342508615,1731945055312,-470.733853,0.00014246,2]
[342508616,1731945055323,-470.733853,0.00014246,2]
[342508617,1731945055333,-500.0,0.00014246,2]
[342508618,1731945055343,-470.733853,0.00014246,2]
[342508619,1731945055354,-470.733853,0.00014246,2]
[342508620,1731945055364,-658.68,0.00014246,2]
[342508621,1731945055374,-151.0,0.00014246,2]
[342508622,1731945055384,-151.0,0.00014246,2]
[342508623,1731945055393,-500.0,0.00014246,2]
[342508624,1731945055403,-500.0,0.00014246,2]
[342508625,1731945055412,-232.997186,0.00014246,2]
[342508626,1731945055422,-500.0,0.00014246,2]
[342508627,1731945055432,-508.385001,0.00014246,2]
[342508628,1731945055441,-500.0,0.00014246,2]
[342508629,1731945055450,-524.52,0.00014246,2]
[342508630,1731945055459,-232.997186,0.00014246,2]
[342508631,1731945055470,-508.385001,0.00014246,2]
[342508632,1731945055480,-500.0,0.00014246,2]
[342508633,1731945055492,-500.0,0.00014246,2]
[342508634,1731945055502,-500.0,0.00014246,2]
[342508635,1731945055511,-632.92,0.00014246,2]
[342508636,1731945055521,-500.0,0.00014246,2]
[342508637,1731945055531,-865.31,0.00014246,2]
[342508638,1731945055540,-500.0,0.00014246,2]
[342508639,1731945055550,-587.26,0.00014246,2]
[342508640,1731945055559,-500.0,0.00014246,2]
[342508641,1731945055569,-701.88,0.00014246,2]
[342508642,1731945055579,-500.0,0.00014246,2]
[342508643,1731945055589,-500.0,0.00014246,2]
[342508644,1731945055598,-172.04,0.00014246,2]
[342508645,1731945055608,-500.0,0.00014246,2]
[342508646,1731945055617,-2199.65,0.00014246,2]
[342508647,1731945055627,-500.0,0.00014246,2]
[342508648,1731945055637,-500.0,0.00014246,2]
[342508649,1731945055647,-500.0,0.00014246,2]
[342508650,1731945055656,-500.0,0.00014246,2]
[342508651,1731945055666,-500.0,0.00014246,2]
[342508652,1731945055676,-513.0,0.00014246,2]
[342508653,1731945055686,-500.0,0.00014246,2]
[342508654,1731945055696,-5817.01,0.00014246,2]
[342508655,1731945055706,-256.164596,0.00014246,2]
[342508656,1731945055716,-256.164596,0.00014246,2]
[342508657,1731945055727,-500.0,0.00014246,2]
[342508658,1731945055739,-151.0,0.00014246,2]
[342508659,1731945055749,-151.0,0.00014246,2]
[342508660,1731945055759,-256.164596,0.00014246,2]
[342508661,1731945055768,-256.164596,0.00014246,2]
[342508662,1731945055778,-642.85,0.00014246,2]
[342508663,1731945055788,-224.65,0.00014246,2]
[342508664,1731945055797,-593.07,0.00014246,2]
[342508665,1731945055807,-2864.24,0.00014246,2]
[342508666,1731945055817,-500.0,0.00014246,2]
[342508667,1731945055828,-756.35,0.00014246,2]
[342508668,1731945055837,-1284.28,0.00014246,2]
[342508669,1731945055847,-910.43,0.00014246,2]
[342508670,1731945055857,-912.58,0.00014246,2]
[342508671,1731945055867,-500.0,0.00014246,2]
[342508672,1731945055877,-1835.75,0.00014246,2]
[342508673,1731945055887,-2501.18,0.00014246,2]
[342508674,1731945055898,-500.0,0.00014246,2]
[342508675,1731945055907,-500.0,0.00014246,2]
[342508676,1731945055916,-500.0,0.00014246,2]
[342508677,1731945055926,-500.0,0.00014246,2]
[342508678,1731945055935,-500.0,0.00014246,2]
[342508679,1731945055945,-500.0,0.00014246,2]
[342508680,1731945055956,-500.0,0.00014246,2]
[342508681,1731945055966,-500.0,0.00014246,2]
[342508682,1731945055976,-235.37,0.00014246,2]
[342508683,1731945055989,-500.0,0.00014246,2]
[342508684,1731945055999,-324.83053558,0.00014246,2]
[342508685,1731945056009,-500.0,0.00014246,2]
[342508686,1731945056019,-985.47,0.00014246,2]
[342508687,1731945056031,-7259.95,0.00014246,2]
[342508688,1731945056040,-500.0,0.00014246,2]
[342508689,1731945056050,-10552.15,0.00014246,2]
[342508690,1731945056059,-2343.41,0.00014246,2]
[342508691,1731945056070,-500.0,0.00014246,2]
[342508692,1731945056080,-1194.08,0.00014246,2]
[342508693,1731945056090,-151.0,0.00014246,2]
[342508694,1731945056100,-151.0,0.00014246,2]
[342508695,1731945056110,-500.0,0.00014246,2]
[342508696,1731945056119,-549.96,0.00014246,2]
[342508697,1731945056129,-500.0,0.00014246,2]
[342508698,1731945056138,-151.0,0.00014246,2]
[342508699,1731945056148,-151.0,0.00014246,2]
[342508700,1731945056157,-500.0,0.00014246,2]
[342508701,1731945056167,-1321.64,0.00014246,2]
[342508702,1731945056178,-500.0,0.00014246,2]
[342508703,1731945056188,-500.0,0.00014246,2]
[342508704,1731945056197,-500.0,0.00014246,2]
[342508705,1731945056208,-500.0,0.00014246,2]
[342508706,1731945056219,-500.0,0.00014246,2]
[342508707,1731945056229,-150.0,0.00014259,2]
[342508708,1731945056241,-530.0,0.00014259,2]
[342508709,1731945056250,-2385.0,0.00014259,2]
[342508710,1731945056259,-1110.0,0.00014259,2]
[342508711,1731945056270,-500.0,0.00014291,2]
[342508712,1731945056280,-503.22918087,0.00014291,2]
[342508713,1731945056290,-500.0,0.00014291,2]
[342508714,1731945056302,-500.0,0.00014296,2]
[342508715,1731945056312,-500.0,0.00014298,2]
[342508716,1731945056322,-500.0,0.00014298,2]
[342508717,1731945056332,-502.1092101,0.00014298,2]
[342508718,1731945056343,-500.0,0.00014313,2]
[342508719,1731945056353,-500.0,0.00014313,2]
[342508720,1731945056365,-606.39456984,0.00014313,2]
[342508721,1731945056374,-513.95772625,0.00014315,2]
[342508722,1731945056385,-364.03864288,0.00014315,2]
[342508723,1731945056395,-150.93779624,0.00014315,2]
[342508724,1731945056404,-431.86461068,0.00014315,2]
[342508725,1731945056414,-500.0,0.00014315,2]
[342508726,1731945056423,-160.72627582,0.00014315,2]
[342508727,1731945056433,-501.03721224,0.00014315,2]
[342508728,1731945056442,-3241.727856,0.00014384,2]
[342508729,1731945056453,-248.211,0.00014515,2]
[342508730,1731945056462,-500.0,0.0001452,2]
[342508731,1731945056472,-500.0,0.0001452,2]
[342508732,1731945056481,-259.81886632,0.0001452,2]
[342508733,1731945056494,-460.56432571,0.0001452,2]
[342508734,1731945056503,-151.0,0.0001452,2]
[342508735,1731945056513,-191.40442,0.0001452,2]
[342508736,1731945056523,-191.40442,0.0001452,2]
[342508737,1731945056688,-194.277484,0.0001452,2]
[342508738,1731945056700,-194.277484,0.0001452,2]
[342508739,1731945056711,-194.277484,0.0001452,2]
[342508740,1731945056721,-194.277484,0.0001452,2]
[342508741,1731945056731,-151.0,0.0001452,2]
[342508742,1731945056745,-151.0,0.0001452,2]
[342508743,1731945056756,-151.0,0.0001452,2]
[342508744,1731945056765,-500.0,0.0001452,2]
[342508745,1731945056775,-500.0,0.0001452,2]
[342508746,1731945056785,-151.0,0.0001452,2]
[342508747,1731945056795,-565.579117,0.0001452,2]
[342508748,1731945056805,-565.579117,0.0001452,2]
[342508749,1731945056814,-500.0,0.0001452,2]
[342508750,1731945056824,-151.0,0.0001452,2]
[342508751,1731945056834,-177.386846,0.0001452,2]
[342508752,1731945056844,-177.386846,0.0001452,2]
[342508753,1731945056854,-500.0,0.0001452,2]
[342508754,1731945056864,-500.0,0.0001452,2]
[342508755,1731945056873,-392.02448165,0.0001452,2]
[342508756,1731945056885,-151.0,0.0001452,2]
[342508757,1731945056894,-500.0,0.0001452,2]
[342508758,1731945056905,-500.0,0.0001452,2]
[342508759,1731945056914,-500.0,0.0001452,2]
[342508760,1731945056924,-500.0,0.0001452,2]
[342508761,1731945056933,-500.0,0.0001452,2]
[342508762,1731945056944,-500.0,0.0001452,2]
[342508763,1731945056954,-500.0,0.0001452,2]
[342508764,1731945056963,-500.0,0.0001452,2]
[342508765,1731945056973,-500.0,0.0001452,2]
[342508766,1731945056982,-173.462048,0.0001452,2]
[342508767,1731945056996,-173.462048,0.0001452,2]
[342508768,1731945057005,-500.0,0.0001452,2]
[342508769,1731945057018,-441.84078514,0.0001452,2]
[342508770,1731945057027,-500.0,0.0001452,2]
[342508771,1731945057038,-1448.23,0.0001452,2]
[342508772,1731945057048,-500.0,0.0001452,2]
[342508773,1731945057057,-538.05,0.0001452,2]
[342508774,1731945057067,-500.0,0.0001452,2]
[342508775,1731945057078,-151.0,0.0001452,2]
[342508776,1731945057088,-500.0,0.0001452,2]
[342508777,1731945057098,-805.44,0.0001452,2]
[342508778,1731945057109,-500.0,0.0001452,2]
[342508779,1731945057119,-949.0,0.0001452,2]
[342508780,1731945057130,-1009.56,0.0001452,2]
[342508781,1731945057142,-1786.68,0.0001452,2]
[342508782,1731945057153,-500.0,0.0001452,2]
[342508783,1731945057164,-647.61762952,0.0001452,2]
[342508784,1731945057174,-500.0,0.0001452,2]
[342508785,1731945057185,-500.0,0.0001452,2]
[342508786,1731945057195,-500.0,0.0001452,2]
[342508787,1731945057206,-500.0,0.0001452,2]
[342508788,1731945057217,-500.0,0.0001452,2]
[342508789,1731945057227,-500.0,0.0001452,2]
[342508790,1731945057241,-2336.0,0.0001452,2]
[342508791,1731945057251,-500.0,0.0001452,2]
[342508792,1731945057261,-500.0,0.0001452,2]
[342508793,1731945057276,-524.35,0.0001452,2]
[342508794,1731945057286,-522.05,0.0001452,2]
[342508795,1731945057297,-500.0,0.0001452,2]
[342508796,1731945057307,-500.0,0.0001452,2]
[342508797,1731945057318,-500.0,0.0001452,2]
[342508798,1731945057328,-151.0,0.0001452,2]
[342508799,1731945057339,-598.35,0.0001452,2]
[342508800,1731945057349,-531.56,0.0001452,2]
[342508801,1731945057359,-500.0,0.0001452,2]
[342508802,1731945057370,-500.0,0.0001452,2]
[342508803,1731945057380,-545.38,0.0001452,2]
[342508804,1731945057390,-505.13,0.0001452,2]
[342508805,1731945057399,-500.0,0.0001452,2]
[342508806,1731945057409,-500.0,0.0001452,2]
[342508807,1731945057419,-500.0,0.0001452,2]
[342508808,1731945057429,-500.0,0.0001452,2]
[342508809,1731945057439,-500.0,0.0001452,2]
[342508810,1731945057449,-562.67,0.0001452,2]
[342508811,1731945057459,-151.0,0.0001452,2]
[342508812,1731945057469,-151.0,0.0001452,2]
[342508813,1731945057480,-530.45225035,0.0001452,2]
[342508814,1731945057496,-500.0,0.0001452,2]
[342508815,1731945057506,-470.733853,0.0001452,2]
[342508816,1731945057516,-500.0,0.0001452,2]
[342508817,1731945057526,-470.733853,0.0001452,2]
[342508818,1731945057535,-658.68,0.0001452,2]
[342508819,1731945057546,-151.0,0.0001452,2]
[342508820,1731945057556,-500.0,0.0001452,2]
[342508821,1731945057565,-500.0,0.0001452,2]
[342508822,1731945057575,-232.997186,0.0001452,2]
[342508823,1731945057584,-500.0,0.0001452,2]
[342508824,1731945057594,-508.385001,0.0001452,2]
[342508825,1731945057604,-500.0,0.0001452,2]
[342508826,1731945057613,-524.52,0.0001452,2]
[342508827,1731945057623,-232.997186,0.0001452,2]
[342508828,1731945057632,-508.385001,0.0001452,2]
[342508829,1731945057642,-500.0,0.0001452,2]
[342508830,1731945057653,-432.25938253,0.0001452,2]
[342508831,1731945057662,-385.54,0.0001452,2]
[342508832,1731945057672,-500.0,0.0001452,2]
[342508833,1731945057681,-865.31,0.0001452,2]
[342508834,1731945057691,-500.0,0.0001452,2]
[342508835,1731945057700,-587.26,0.0001452,2]
[342508836,1731945057710,-624.63772486,0.0001452,2]
[342508837,1731945057720,-701.88,0.0001452,2]
[342508838,1731945057729,-615.59,0.0001452,2]
[342508839,1731945057744,-500.0,0.0001452,2]
[342508840,1731945057753,-500.0,0.0001452,2]
[342508841,1731945057763,-2199.65,0.0001452,2]
[342508842,1731945057773,-500.0,0.0001452,2]
[342508843,1731945057783,-500.0,0.0001452,2]
[342508844,1731945057792,-500.0,0.0001452,2]
[342508845,1731945057802,-500.0,0.0001452,2]
[342508846,1731945057811,-604.91707477,0.0001452,2]
[342508847,1731945057821,-513.0,0.0001452,2]
[342508848,1731945057831,-500.0,0.0001452,2]
[342508849,1731945057840,-5817.01,0.0001452,2]
[342508850,1731945057850,-256.164596,0.0001452,2]
[342508851,1731945057859,-269.643563,0.0001452,2]
[342508852,1731945057869,-256.164596,0.0001452,2]
[342508853,1731945057879,-642.85,0.0001452,2]
[342508854,1731945057888,-593.07,0.0001452,2]
[342508855,1731945057898,-2864.24,0.0001452,2]
[342508856,1731945057909,-500.0,0.0001452,2]
[342508857,1731945057919,-756.35,0.0001452,2]
[342508858,1731945057928,-1284.28,0.0001452,2]
[342508859,1731945057938,-910.43,0.0001452,2]
[342508860,1731945057948,-912.58,0.0001452,2]
[342508861,1731945057957,-1835.75,0.0001452,2]
[342508862,1731945057967,-2501.18,0.0001452,2]
[342508863,1731945057977,-500.0,0.0001452,2]
[342508864,1731945057992,-500.0,0.0001452,2]
[342508865,1731945058001,-500.0,0.0001452,2]
[342508866,1731945058010,-368.0207607,0.0001452,2]
[342508867,1731945058020,-500.0,0.0001452,2]
[342508868,1731945058029,-229.88,0.0001452,2]
[342508869,1731945058038,-500.0,0.0001452,2]
[342508870,1731945058048,-500.0,0.0001452,2]
[342508871,1731945058057,-500.0,0.0001452,2]
[342508872,1731945058066,-500.0,0.0001452,2]
[342508873,1731945058075,-985.47,0.0001452,2]
[342508874,1731945058085,-7259.95,0.0001452,2]
[342508875,1731945058094,-222.9934375,0.0001452,2]
[342508876,1731945058104,-10552.15,0.0001452,2]
[342508877,1731945058114,-2343.41,0.0001452,2]
[342508878,1731945058123,-500.0,0.0001452,2]
[342508879,1731945058133,-1194.08,0.0001452,2]
[342508880,1731945058143,-151.0,0.0001452,2]
[342508881,1731945058152,-500.0,0.0001452,2]
[342508882,1731945058162,-549.96,0.0001452,2]
[342508883,1731945058172,-500.0,0.0001452,2]
[342508884,1731945058181,-151.0,0.0001452,2]
[342508885,1731945058191,-443.12843302,0.0001452,2]
[342508886,1731945058200,-1321.64,0.0001452,2]
[342508887,1731945058210,-500.0,0.0001452,2]
[342508888,1731945058220,-500.0,0.0001452,2]
[342508889,1731945058229,-500.0,0.0001452,2]
[342508890,1731945058242,-500.0,0.0001452,2]
[342508891,1731945058252,-1441.2,0.00014524,2]
[342508892,1731945058262,-420.0,0.00014647,2]
[342508893,1731945058273,-420.0,0.00014697,2]
[342508894,1731945058283,-151.0,0.00014794,2]
[342508895,1731945058293,-151.0,0.00014794,2]
[342508896,1731945058305,-191.40442,0.00014794,2]
[342508897,1731945058315,-191.40442,0.00014794,2]
[342508898,1731945058325,-191.40442,0.00014794,2]
[342508899,1731945058334,-191.40442,0.00014794,2]
[342508900,1731945058345,-194.277484,0.00014794,2]
[342508901,1731945058355,-194.277491,0.00014794,2]
[342508902,1731945058366,-151.0,0.00014794,2]
[342508903,1731945058376,-151.0,0.00014794,2]
[342508904,1731945058386,-151.0,0.00014794,2]
[342508905,1731945058396,-500.0,0.00014794,2]
[342508906,1731945058406,-151.0,0.00014794,2]
[342508907,1731945058415,-151.0,0.00014794,2]
[342508908,1731945058426,-565.579117,0.00014794,2]
[342508909,1731945058436,-565.579117,0.00014794,2]
[342508910,1731945058446,-500.0,0.00014794,2]
[342508911,1731945058456,-151.0,0.00014794,2]
[342508912,1731945058467,-177.386846,0.00014794,2]